[Event "November 21 Late 2023"]
[Site "https://www.chess.com"]
[Date "2023.11.21"]
[Round "5"]
[White "Modric, Nesa"]
[Black "Kuegel, Tobias"]
[Result "0-1"]
[Board "118"]
[TimeControl "180+1"]
[WhiteFideId "922579"]
[BlackFideId "4636295"]
[WhiteElo "2167"]
[BlackElo "2213"]
[WhiteTeam "SRB"]
[BlackTeam "GER"]
[WhiteClock "0:00:01"]
[BlackClock "0:00:15"]

1. e4 {[%clk 0:02:56]}  e5 {[%clk 0:03:00]} 2. Nf3 {[%clk 0:02:56]}  Nc6 {[%clk 0:03:01]} 3. Bc4 {[%clk 0:02:55]}  Bc5 {[%clk 0:03:01]} 4. O-O {[%clk 0:02:55]}  Nf6 {[%clk 0:03:01]} 5. d3 {[%clk 0:02:54]}  O-O {[%clk 0:03:00]} 6. Re1 {[%clk 0:02:53]}  Ng4 {[%clk 0:02:46]} 7. Re2 {[%clk 0:02:53]}  Kh8 {[%clk 0:02:45]} 8. h3 {[%clk 0:02:52]}  f5 {[%clk 0:02:45]} 9. Bg5 {[%clk 0:02:52]}  Qe8 {[%clk 0:02:40]} 10. exf5 {[%clk 0:02:45]}  Nxf2 {[%clk 0:02:34]} 11. Rxf2 {[%clk 0:02:42]}  Rxf5 {[%clk 0:02:25]} 12. Bh4 {[%clk 0:02:17]}  Nd4 {[%clk 0:01:45]} 13. Nbd2 {[%clk 0:02:02]}  c6 {[%clk 0:01:41]} 14. Kh2 {[%clk 0:01:16]}  d5 {[%clk 0:01:40]} 15. Nxd4 {[%clk 0:00:57]}  Bxd4 {[%clk 0:01:40]} 16. Rxf5 {[%clk 0:00:56]}  Bxf5 {[%clk 0:01:41]} 17. Bb3 {[%clk 0:00:44]}  Bxb2 {[%clk 0:01:37]} 18. Rb1 {[%clk 0:00:44]}  Ba3 {[%clk 0:01:29]} 19. Nf3 {[%clk 0:00:43]}  e4 {[%clk 0:01:21]} 20. dxe4 {[%clk 0:00:40]}  Qxe4 {[%clk 0:01:18]} 21. Qe1 {[%clk 0:00:29]}  Qf4+ {[%clk 0:00:59]} 22. Bg3 {[%clk 0:00:29]}  Qh6 {[%clk 0:00:59]} 23. Qe2 {[%clk 0:00:21]}  Be4 {[%clk 0:00:54]} 24. Re1 {[%clk 0:00:21]}  Bb4 {[%clk 0:00:51]} 25. Rf1 {[%clk 0:00:18]}  a5 {[%clk 0:00:49]} 26. c4 {[%clk 0:00:18]}  Qg6 {[%clk 0:00:38]} 27. cxd5 {[%clk 0:00:16]}  Bd3 {[%clk 0:00:36]} 28. Nh4 {[%clk 0:00:07]}  Qxg3+ {[%clk 0:00:22]} 29. Kxg3 {[%clk 0:00:07]}  Bxe2 {[%clk 0:00:23]} 30. Rf7 {[%clk 0:00:08]}  a4 {[%clk 0:00:20]} 31. Bc2 {[%clk 0:00:06]}  Be1+ {[%clk 0:00:19]} 32. Rf2 {[%clk 0:00:04]}  Rf8 {[%clk 0:00:18]} 33. Nf5 {[%clk 0:00:03]}  Bxf2+ {[%clk 0:00:16]} 34. Kxf2 {[%clk 0:00:03]}  Bc4 {[%clk 0:00:15]} 35. Ke3 {[%clk 0:00:02]}  Bxd5 {[%clk 0:00:15]} 36. Ne7 {[%clk 0:00:03]}  Bxg2 {[%clk 0:00:14]} 37. h4 {[%clk 0:00:01]}  Re8 {[%clk 0:00:15]} 0-1

[Event "November 21 Late 2023"]
[Site "https://www.chess.com"]
[Date "2023.11.21"]
[Round "5"]
[White "Kochiev, Ivan"]
[Black "Cardozo Munar, Carlos Eduardo"]
[Result "1-0"]
[Board "119"]
[TimeControl "180+1"]
[WhiteFideId "2917890"]
[BlackFideId "4409477"]
[WhiteElo "2285"]
[BlackElo "2067"]
[WhiteTeam "BUL"]
[BlackTeam "COL"]
[WhiteClock "0:00:04"]
[BlackClock "0:00:17"]

1. e4 {[%clk 0:03:00]}  e6 {[%clk 0:02:54]} 2. d4 {[%clk 0:02:53]}  d5 {[%clk 0:02:51]} 3. Nd2 {[%clk 0:02:53]}  c5 {[%clk 0:02:40]} 4. exd5 {[%clk 0:02:53]}  Qxd5 {[%clk 0:02:39]} 5. Ngf3 {[%clk 0:02:53]}  cxd4 {[%clk 0:02:27]} 6. Bc4 {[%clk 0:02:54]}  Qd7 {[%clk 0:02:28]} 7. O-O {[%clk 0:02:53]}  Nc6 {[%clk 0:02:29]} 8. Nb3 {[%clk 0:02:54]}  Nf6 {[%clk 0:02:28]} 9. Nbxd4 {[%clk 0:02:54]}  Nxd4 {[%clk 0:02:28]} 10. Nxd4 {[%clk 0:02:55]}  a6 {[%clk 0:02:28]} 11. a4 {[%clk 0:02:33]}  Bd6 {[%clk 0:02:13]} 12. Bd3 {[%clk 0:02:22]}  b6 {[%clk 0:02:02]} 13. c3 {[%clk 0:02:00]}  Bb7 {[%clk 0:02:01]} 14. Bg5 {[%clk 0:01:54]}  h6 {[%clk 0:02:01]} 15. Bh4 {[%clk 0:01:52]}  Nd5 {[%clk 0:01:47]} 16. Re1 {[%clk 0:01:31]}  Nf4 {[%clk 0:01:47]} 17. Be4 {[%clk 0:01:30]}  Bxe4 {[%clk 0:01:40]} 18. Rxe4 {[%clk 0:01:30]}  Qb7 {[%clk 0:01:41]} 19. Qf3 {[%clk 0:01:18]}  Qd5 {[%clk 0:01:03]} 20. Rxf4 {[%clk 0:00:59]}  Bxf4 {[%clk 0:01:04]} 21. Qxf4 {[%clk 0:01:00]}  g5 {[%clk 0:01:03]} 22. Qf6 {[%clk 0:01:00]}  Rg8 {[%clk 0:00:57]} 23. Bg3 {[%clk 0:00:15]}  h5 {[%clk 0:00:57]} 24. h4 {[%clk 0:00:13]}  gxh4 {[%clk 0:00:56]} 25. Qxh4 {[%clk 0:00:13]}  Kd7 {[%clk 0:00:54]} 26. Rd1 {[%clk 0:00:10]}  Rg4 {[%clk 0:00:52]} 27. Qf6 {[%clk 0:00:08]}  Ke8 {[%clk 0:00:45]} 28. Rd2 {[%clk 0:00:04]}  h4 {[%clk 0:00:37]} 29. Nf3 {[%clk 0:00:05]}  Qh5 {[%clk 0:00:28]} 30. Bxh4 {[%clk 0:00:04]}  Rg6 {[%clk 0:00:19]} 31. Qd8+ {[%clk 0:00:03]}  Rxd8 {[%clk 0:00:17]} 32. Rxd8# {[%clk 0:00:04]} 1-0

[Event "November 21 Late 2023"]
[Site "https://www.chess.com"]
[Date "2023.11.21"]
[Round "5"]
[White "Vemparala, Nikash"]
[Black "Pourkashiyan, Atousa"]
[Result "0-1"]
[Board "123"]
[TimeControl "180+1"]
[WhiteFideId "30960967"]
[BlackFideId "12502014"]
[WhiteElo "2069"]
[BlackElo "2221"]
[WhiteTeam "USA"]
[BlackTeam "USA"]
[WhiteClock "0:00:00"]
[BlackClock "0:00:19"]

1. e4 {[%clk 0:02:59]}  c5 {[%clk 0:02:44]} 2. Nf3 {[%clk 0:02:58]}  e6 {[%clk 0:02:42]} 3. b3 {[%clk 0:02:57]}  d5 {[%clk 0:02:39]} 4. exd5 {[%clk 0:02:55]}  exd5 {[%clk 0:02:40]} 5. Bb5+ {[%clk 0:02:55]}  Bd7 {[%clk 0:02:39]} 6. Qe2+ {[%clk 0:02:50]}  Be7 {[%clk 0:02:35]} 7. Bb2 {[%clk 0:02:46]}  f6 {[%clk 0:02:22]} 8. Bxd7+ {[%clk 0:02:27]}  Qxd7 {[%clk 0:02:19]} 9. d4 {[%clk 0:02:27]}  Na6 {[%clk 0:02:09]} 10. O-O {[%clk 0:02:24]}  O-O-O {[%clk 0:02:01]} 11. dxc5 {[%clk 0:02:22]}  Bxc5 {[%clk 0:01:56]} 12. Rd1 {[%clk 0:02:03]}  Ne7 {[%clk 0:01:45]} 13. c4 {[%clk 0:01:58]}  Kb8 {[%clk 0:01:38]} 14. Nc3 {[%clk 0:01:46]}  Qc6 {[%clk 0:01:24]} 15. Rac1 {[%clk 0:01:25]}  Rhe8 {[%clk 0:01:09]} 16. Qc2 {[%clk 0:01:16]}  dxc4 {[%clk 0:00:54]} 17. Rxd8+ {[%clk 0:01:02]}  Rxd8 {[%clk 0:00:55]} 18. bxc4 {[%clk 0:01:00]}  g6 {[%clk 0:00:39]} 19. a3 {[%clk 0:00:59]}  Nc7 {[%clk 0:00:35]} 20. Ne4 {[%clk 0:00:53]}  f5 {[%clk 0:00:29]} 21. Nxc5 {[%clk 0:00:29]}  Qxc5 {[%clk 0:00:30]} 22. h3 {[%clk 0:00:23]}  Nc6 {[%clk 0:00:30]} 23. Re1 {[%clk 0:00:20]}  a6 {[%clk 0:00:29]} 24. Ne5 {[%clk 0:00:18]}  Nxe5 {[%clk 0:00:27]} 25. Bxe5 {[%clk 0:00:19]}  Ka8 {[%clk 0:00:27]} 26. Qb3 {[%clk 0:00:17]}  Ne6 {[%clk 0:00:26]} 27. Bc3 {[%clk 0:00:15]}  Nd4 {[%clk 0:00:25]} 28. Bxd4 {[%clk 0:00:15]}  Qxd4 {[%clk 0:00:25]} 29. Re7 {[%clk 0:00:14]}  Rd7 {[%clk 0:00:24]} 30. Re8+ {[%clk 0:00:13]}  Ka7 {[%clk 0:00:23]} 31. Re1 {[%clk 0:00:11]}  Rc7 {[%clk 0:00:24]} 32. Rc1 {[%clk 0:00:10]}  b5 {[%clk 0:00:24]} 33. c5 {[%clk 0:00:08]}  Rxc5 {[%clk 0:00:24]} 34. Qf7+ {[%clk 0:00:09]}  Kb6 {[%clk 0:00:23]} 35. Qe6+ {[%clk 0:00:09]}  Ka5 {[%clk 0:00:22]} 36. Rxc5 {[%clk 0:00:08]}  Qxc5 {[%clk 0:00:22]} 37. Qe1+ {[%clk 0:00:08]}  Ka4 {[%clk 0:00:21]} 38. Qe6 {[%clk 0:00:07]}  a5 {[%clk 0:00:20]} 39. Qd7 {[%clk 0:00:06]}  Kxa3 {[%clk 0:00:19]} 40. Qxh7 {[%clk 0:00:06]}  b4 {[%clk 0:00:19]} 41. Qxg6 {[%clk 0:00:06]}  b3 {[%clk 0:00:19]} 42. Qf6 {[%clk 0:00:00]}  b2 {[%clk 0:00:19]} 0-1

[Event "November 21 Late 2023"]
[Site "https://www.chess.com"]
[Date "2023.11.21"]
[Round "5"]
[White "campochess"]
[Black "Della Morte, German"]
[Result "0-1"]
[Board "126"]
[TimeControl "180+1"]
[BlackFideId "113522"]
[WhiteElo "2235"]
[BlackElo "2306"]
[BlackTeam "ARG"]
[WhiteClock "0:01:26"]
[BlackClock "0:02:34"]

1. e4 {[%clk 0:02:54]}  c6 {[%clk 0:02:57]} 2. Nc3 {[%clk 0:02:53]}  d5 {[%clk 0:02:58]} 3. exd5 {[%clk 0:02:52]}  cxd5 {[%clk 0:02:58]} 4. d4 {[%clk 0:02:52]}  Nf6 {[%clk 0:02:58]} 5. Bg5 {[%clk 0:02:52]}  Nc6 {[%clk 0:02:58]} 6. Nf3 {[%clk 0:02:49]}  Bg4 {[%clk 0:02:57]} 7. Bb5 {[%clk 0:02:49]}  e6 {[%clk 0:02:56]} 8. Bxc6+ {[%clk 0:02:49]}  bxc6 {[%clk 0:02:55]} 9. Qd3 {[%clk 0:02:49]}  Bd6 {[%clk 0:02:56]} 10. Ne5 {[%clk 0:02:45]}  Bf5 {[%clk 0:02:55]} 11. Qa6 {[%clk 0:02:44]}  Qb6 {[%clk 0:02:48]} 12. Qxb6 {[%clk 0:02:35]}  axb6 {[%clk 0:02:47]} 13. Bxf6 {[%clk 0:02:35]}  gxf6 {[%clk 0:02:46]} 14. Nd3 {[%clk 0:02:31]}  e5 {[%clk 0:02:46]} 15. Ne2 {[%clk 0:02:26]}  Kd7 {[%clk 0:02:42]} 16. Ng3 {[%clk 0:02:26]}  Bg6 {[%clk 0:02:42]} 17. O-O {[%clk 0:02:18]}  exd4 {[%clk 0:02:42]} 18. Ne2 {[%clk 0:02:06]}  c5 {[%clk 0:02:42]} 19. Ndf4 {[%clk 0:02:04]}  Bxc2 {[%clk 0:02:39]} 20. Nh5 {[%clk 0:02:01]}  d3 {[%clk 0:02:39]} 21. Neg3 {[%clk 0:01:59]}  d2 {[%clk 0:02:38]} 22. Nxf6+ {[%clk 0:01:51]}  Kc6 {[%clk 0:02:36]} 23. a3 {[%clk 0:01:43]}  Be5 {[%clk 0:02:34]} 24. Ng4 {[%clk 0:01:34]}  Bxb2 {[%clk 0:02:34]} 25. Ra2 {[%clk 0:01:34]}  d1=Q {[%clk 0:02:34]} 26. Rxd1 {[%clk 0:01:33]}  Bxd1 {[%clk 0:02:35]} 27. Rxb2 {[%clk 0:01:26]}  Bxg4 {[%clk 0:02:34]} 0-1

[Event "November 21 Late 2023"]
[Site "https://www.chess.com"]
[Date "2023.11.21"]
[Round "5"]
[White "Estrada Nieto, Julian"]
[Black "Quirke, Jeffrey"]
[Result "1/2-1/2"]
[Board "127"]
[TimeControl "180+1"]
[WhiteFideId "5101018"]
[BlackFideId "2013029"]
[WhiteElo "2161"]
[BlackElo "2233"]
[WhiteTeam "ESP"]
[BlackTeam "USA"]
[WhiteClock "0:00:10"]
[BlackClock "0:00:11"]

1. e4 {[%clk 0:02:57]}  e6 {[%clk 0:02:59]} 2. d4 {[%clk 0:02:57]}  d5 {[%clk 0:02:59]} 3. Nd2 {[%clk 0:02:55]}  c5 {[%clk 0:02:59]} 4. exd5 {[%clk 0:02:52]}  Qxd5 {[%clk 0:02:59]} 5. dxc5 {[%clk 0:02:49]}  Nf6 {[%clk 0:02:54]} 6. Ngf3 {[%clk 0:02:49]}  Qxc5 {[%clk 0:02:41]} 7. Bd3 {[%clk 0:02:48]}  Be7 {[%clk 0:02:39]} 8. O-O {[%clk 0:02:48]}  Nbd7 {[%clk 0:02:35]} 9. Qe2 {[%clk 0:02:48]}  O-O {[%clk 0:02:33]} 10. c4 {[%clk 0:02:45]}  b6 {[%clk 0:02:33]} 11. Ne4 {[%clk 0:02:42]}  Qc7 {[%clk 0:02:30]} 12. b3 {[%clk 0:02:34]}  Bb7 {[%clk 0:02:24]} 13. Bb2 {[%clk 0:02:33]}  Rfd8 {[%clk 0:02:08]} 14. Rfd1 {[%clk 0:02:27]}  Rac8 {[%clk 0:02:06]} 15. Nxf6+ {[%clk 0:02:23]}  Nxf6 {[%clk 0:02:06]} 16. Ne5 {[%clk 0:02:17]}  Bd6 {[%clk 0:01:45]} 17. h3 {[%clk 0:02:10]}  h6 {[%clk 0:01:38]} 18. Ng4 {[%clk 0:02:09]}  Nxg4 {[%clk 0:01:29]} 19. Qxg4 {[%clk 0:02:08]}  Bf8 {[%clk 0:01:29]} 20. Be2 {[%clk 0:01:35]}  Qc5 {[%clk 0:01:21]} 21. Bf3 {[%clk 0:01:31]}  Bxf3 {[%clk 0:01:20]} 22. Qxf3 {[%clk 0:01:31]}  a5 {[%clk 0:01:16]} 23. Rxd8 {[%clk 0:01:24]}  Rxd8 {[%clk 0:01:15]} 24. Rd1 {[%clk 0:01:25]}  Rxd1+ {[%clk 0:01:11]} 25. Qxd1 {[%clk 0:01:24]}  Qd6 {[%clk 0:01:10]} 26. Qxd6 {[%clk 0:01:23]}  Bxd6 {[%clk 0:01:10]} 27. Kf1 {[%clk 0:01:21]}  Bc5 {[%clk 0:01:10]} 28. Ke2 {[%clk 0:01:19]}  Kf8 {[%clk 0:01:10]} 29. f3 {[%clk 0:01:19]}  f6 {[%clk 0:01:09]} 30. Kd3 {[%clk 0:01:19]}  Ke7 {[%clk 0:01:09]} 31. Bd4 {[%clk 0:01:17]}  Kd6 {[%clk 0:01:03]} 32. g4 {[%clk 0:01:15]}  e5 {[%clk 0:00:57]} 33. Bb2 {[%clk 0:01:10]}  g6 {[%clk 0:00:53]} 34. Bc1 {[%clk 0:00:57]}  h5 {[%clk 0:00:50]} 35. gxh5 {[%clk 0:00:55]}  gxh5 {[%clk 0:00:50]} 36. f4 {[%clk 0:00:54]}  Ke6 {[%clk 0:00:47]} 37. fxe5 {[%clk 0:00:53]}  Kxe5 {[%clk 0:00:41]} 38. Bh6 {[%clk 0:00:46]}  f5 {[%clk 0:00:35]} 39. Bc1 {[%clk 0:00:31]}  f4 {[%clk 0:00:35]} 40. Bb2+ {[%clk 0:00:23]}  Kf5 {[%clk 0:00:35]} 41. Bc1 {[%clk 0:00:14]}  Ke5 {[%clk 0:00:25]} 42. Bb2+ {[%clk 0:00:13]}  Kf5 {[%clk 0:00:25]} 43. Bc1 {[%clk 0:00:13]}  Kg5 {[%clk 0:00:18]} 44. Ke4 {[%clk 0:00:13]}  Kh4 {[%clk 0:00:19]} 45. Bxf4 {[%clk 0:00:12]}  Kxh3 {[%clk 0:00:19]} 46. Kd5 {[%clk 0:00:11]}  h4 {[%clk 0:00:18]} 47. Kc6 {[%clk 0:00:11]}  Kg2 {[%clk 0:00:17]} 48. a3 {[%clk 0:00:11]}  h3 {[%clk 0:00:15]} 49. b4 {[%clk 0:00:11]}  axb4 {[%clk 0:00:12]} 50. axb4 {[%clk 0:00:11]}  Bxb4 {[%clk 0:00:12]} 51. Kxb6 {[%clk 0:00:10]}  h2 {[%clk 0:00:10]} 52. Bxh2 {[%clk 0:00:10]}  Kxh2 {[%clk 0:00:11]} 53. c5 {[%clk 0:00:10]}  Bxc5+ {[%clk 0:00:11]} 1/2-1/2

[Event "November 21 Late 2023"]
[Site "https://www.chess.com"]
[Date "2023.11.21"]
[Round "5"]
[White "Bullen, Alex"]
[Black "Bochnicka, Vladimir"]
[Result "0-1"]
[Board "128"]
[TimeControl "180+1"]
[WhiteFideId "1801627"]
[BlackFideId "14943450"]
[WhiteElo "2078"]
[BlackElo "2170"]
[WhiteTeam "WLS"]
[BlackTeam "SVK"]
[WhiteClock "0:00:00"]
[BlackClock "0:00:02"]

1. d4 {[%clk 0:03:00]}  Nf6 {[%clk 0:03:00]} 2. Nf3 {[%clk 0:03:00]}  g6 {[%clk 0:03:00]} 3. Nbd2 {[%clk 0:02:59]}  Bg7 {[%clk 0:03:00]} 4. e4 {[%clk 0:02:59]}  d6 {[%clk 0:03:00]} 5. Bd3 {[%clk 0:03:00]}  O-O {[%clk 0:03:00]} 6. O-O {[%clk 0:03:01]}  Nbd7 {[%clk 0:03:01]} 7. Re1 {[%clk 0:03:01]}  e5 {[%clk 0:03:01]} 8. dxe5 {[%clk 0:03:02]}  Nxe5 {[%clk 0:03:01]} 9. Nxe5 {[%clk 0:03:02]}  dxe5 {[%clk 0:03:02]} 10. Nc4 {[%clk 0:03:02]}  Nh5 {[%clk 0:02:59]} 11. b3 {[%clk 0:02:59]}  Nf4 {[%clk 0:02:59]} 12. Bf1 {[%clk 0:02:56]}  Qe7 {[%clk 0:02:55]} 13. Ba3 {[%clk 0:02:50]}  Qg5 {[%clk 0:02:51]} 14. Qf3 {[%clk 0:02:13]}  Rd8 {[%clk 0:02:37]} 15. Rad1 {[%clk 0:02:10]}  Rxd1 {[%clk 0:02:37]} 16. Rxd1 {[%clk 0:02:02]}  Bg4 {[%clk 0:02:37]} 17. Qg3 {[%clk 0:02:03]}  Nh5 {[%clk 0:02:36]} 18. Qd3 {[%clk 0:01:40]}  Bxd1 {[%clk 0:02:34]} 19. Qxd1 {[%clk 0:01:40]}  Rd8 {[%clk 0:02:33]} 20. Qe1 {[%clk 0:01:36]}  Nf4 {[%clk 0:02:17]} 21. Ne3 {[%clk 0:01:27]}  Bh6 {[%clk 0:02:10]} 22. g3 {[%clk 0:01:24]}  Ne6 {[%clk 0:02:06]} 23. h4 {[%clk 0:01:19]}  Qf6 {[%clk 0:01:54]} 24. Nd5 {[%clk 0:01:19]}  Qg7 {[%clk 0:01:49]} 25. Be7 {[%clk 0:01:10]}  Nd4 {[%clk 0:01:32]} 26. Qb4 {[%clk 0:00:54]}  Nc6 {[%clk 0:01:22]} 27. Qc5 {[%clk 0:00:48]}  Nxe7 {[%clk 0:01:11]} 28. Qxe7 {[%clk 0:00:40]}  Qf8 {[%clk 0:01:03]} 29. Qxe5 {[%clk 0:00:32]}  Bg7 {[%clk 0:01:00]} 30. Qxc7 {[%clk 0:00:31]}  Qd6 {[%clk 0:00:40]} 31. Qc4 {[%clk 0:00:17]}  a6 {[%clk 0:00:35]} 32. a4 {[%clk 0:00:16]}  h5 {[%clk 0:00:30]} 33. Bd3 {[%clk 0:00:16]}  Kh7 {[%clk 0:00:20]} 34. Qc7 {[%clk 0:00:15]}  Qxc7 {[%clk 0:00:19]} 35. Nxc7 {[%clk 0:00:16]}  Rc8 {[%clk 0:00:18]} 36. Nd5 {[%clk 0:00:16]}  Bd4 {[%clk 0:00:17]} 37. Kf1 {[%clk 0:00:15]}  Kg7 {[%clk 0:00:17]} 38. f3 {[%clk 0:00:15]}  b5 {[%clk 0:00:11]} 39. axb5 {[%clk 0:00:14]}  axb5 {[%clk 0:00:11]} 40. g4 {[%clk 0:00:15]}  hxg4 {[%clk 0:00:08]} 41. fxg4 {[%clk 0:00:15]}  Rh8 {[%clk 0:00:08]} 42. h5 {[%clk 0:00:12]}  gxh5 {[%clk 0:00:08]} 43. gxh5 {[%clk 0:00:13]}  Rxh5 {[%clk 0:00:09]} 44. Bxb5 {[%clk 0:00:12]}  Rh1+ {[%clk 0:00:09]} 45. Ke2 {[%clk 0:00:12]}  Rh2+ {[%clk 0:00:09]} 46. Kd3 {[%clk 0:00:12]}  Be5 {[%clk 0:00:09]} 47. Ne3 {[%clk 0:00:12]}  Rh3 {[%clk 0:00:09]} 48. Ke2 {[%clk 0:00:11]}  Kf8 {[%clk 0:00:09]} 49. Nf5 {[%clk 0:00:10]}  Rh2+ {[%clk 0:00:09]} 50. Kd3 {[%clk 0:00:10]}  Rh3+ {[%clk 0:00:10]} 51. Ke2 {[%clk 0:00:10]}  Rc3 {[%clk 0:00:10]} 52. Kd2 {[%clk 0:00:09]}  Rc5 {[%clk 0:00:10]} 53. Bc4 {[%clk 0:00:09]}  Ke8 {[%clk 0:00:07]} 54. Kd3 {[%clk 0:00:09]}  Rc7 {[%clk 0:00:06]} 55. Ne3 {[%clk 0:00:09]}  Rd7+ {[%clk 0:00:06]} 56. Nd5 {[%clk 0:00:09]}  Rd6 {[%clk 0:00:06]} 57. b4 {[%clk 0:00:09]}  Kd8 {[%clk 0:00:05]} 58. b5 {[%clk 0:00:10]}  Kc8 {[%clk 0:00:05]} 59. b6 {[%clk 0:00:09]}  Kb7 {[%clk 0:00:05]} 60. Bb3 {[%clk 0:00:08]}  Bh2 {[%clk 0:00:03]} 61. c4 {[%clk 0:00:08]}  Bg1 {[%clk 0:00:04]} 62. Kc3 {[%clk 0:00:07]}  Bxb6 {[%clk 0:00:03]} 63. Nxb6 {[%clk 0:00:03]}  Kxb6 {[%clk 0:00:03]} 64. Bc2 {[%clk 0:00:02]}  Kc5 {[%clk 0:00:03]} 65. Bb3 {[%clk 0:00:02]}  Rd4 {[%clk 0:00:01]} 66. Ba2 {[%clk 0:00:00]}  f6 {[%clk 0:00:02]} 0-1

[Event "November 21 Late 2023"]
[Site "https://www.chess.com"]
[Date "2023.11.21"]
[Round "5"]
[White "Suspenser17"]
[Black "Curtis, John"]
[Result "0-1"]
[Board "131"]
[TimeControl "180+1"]
[BlackFideId "3200256"]
[WhiteElo "2398"]
[BlackElo "2203"]
[BlackTeam "AUS"]
[WhiteClock "0:02:19"]
[BlackClock "0:02:18"]

1. e4 {[%clk 0:03:00]}  c5 {[%clk 0:02:56]} 2. Nf3 {[%clk 0:03:00]}  d6 {[%clk 0:02:57]} 3. d4 {[%clk 0:02:59]}  cxd4 {[%clk 0:02:57]} 4. Nxd4 {[%clk 0:03:00]}  Nf6 {[%clk 0:02:57]} 5. Nc3 {[%clk 0:03:01]}  a6 {[%clk 0:02:57]} 6. Bg5 {[%clk 0:03:01]}  e5 {[%clk 0:02:56]} 7. Nb3 {[%clk 0:02:52]}  Be6 {[%clk 0:02:53]} 8. Be2 {[%clk 0:02:47]}  Nbd7 {[%clk 0:02:53]} 9. Qd2 {[%clk 0:02:39]}  Rc8 {[%clk 0:02:52]} 10. O-O {[%clk 0:02:38]}  h6 {[%clk 0:02:45]} 11. Be3 {[%clk 0:02:35]}  b5 {[%clk 0:02:29]} 12. f3 {[%clk 0:02:31]}  Nb6 {[%clk 0:02:23]} 13. Rfd1 {[%clk 0:02:23]}  Nc4 {[%clk 0:02:19]} 14. Bd3 {[%clk 0:02:19]}  Nxd2 {[%clk 0:02:18]} 0-1

[Event "November 21 Late 2023"]
[Site "https://www.chess.com"]
[Date "2023.11.21"]
[Round "5"]
[White "Rios Escobar, Adan"]
[Black "Elbebiber"]
[Result "1-0"]
[Board "132"]
[TimeControl "180+1"]
[WhiteFideId "3403645"]
[WhiteElo "2395"]
[BlackElo "2187"]
[WhiteTeam "CHI"]
[WhiteClock "0:00:05"]
[BlackClock "0:00:04"]

1. Nf3 {[%clk 0:02:57]}  Nf6 {[%clk 0:02:55]} 2. c4 {[%clk 0:02:55]}  e6 {[%clk 0:02:49]} 3. Nc3 {[%clk 0:02:52]}  b6 {[%clk 0:02:45]} 4. g3 {[%clk 0:02:50]}  Bb7 {[%clk 0:02:44]} 5. Bg2 {[%clk 0:02:51]}  Be7 {[%clk 0:02:40]} 6. O-O {[%clk 0:02:50]}  O-O {[%clk 0:02:40]} 7. d4 {[%clk 0:02:51]}  Ne4 {[%clk 0:02:11]} 8. Re1 {[%clk 0:02:08]}  Nxc3 {[%clk 0:01:48]} 9. bxc3 {[%clk 0:02:04]}  d6 {[%clk 0:01:43]} 10. e4 {[%clk 0:02:01]}  Nd7 {[%clk 0:01:36]} 11. a4 {[%clk 0:01:48]}  a5 {[%clk 0:01:29]} 12. Nd2 {[%clk 0:01:44]}  e5 {[%clk 0:01:25]} 13. f4 {[%clk 0:01:40]}  Bf6 {[%clk 0:01:12]} 14. Nf3 {[%clk 0:01:31]}  Qe7 {[%clk 0:01:04]} 15. Ra2 {[%clk 0:01:25]}  g6 {[%clk 0:01:01]} 16. Ba3 {[%clk 0:01:10]}  c5 {[%clk 0:00:49]} 17. fxe5 {[%clk 0:00:42]}  dxe5 {[%clk 0:00:47]} 18. d5 {[%clk 0:00:40]}  Qd6 {[%clk 0:00:39]} 19. Bc1 {[%clk 0:00:39]}  Ba6 {[%clk 0:00:34]} 20. Bf1 {[%clk 0:00:38]}  Bg7 {[%clk 0:00:31]} 21. Rf2 {[%clk 0:00:38]}  Rae8 {[%clk 0:00:23]} 22. Qc2 {[%clk 0:00:26]}  h6 {[%clk 0:00:20]} 23. Bd2 {[%clk 0:00:25]}  Kh7 {[%clk 0:00:19]} 24. h4 {[%clk 0:00:19]}  f5 {[%clk 0:00:16]} 25. h5 {[%clk 0:00:17]}  Bf6 {[%clk 0:00:10]} 26. hxg6+ {[%clk 0:00:17]}  Kxg6 {[%clk 0:00:09]} 27. exf5+ {[%clk 0:00:17]}  Kh7 {[%clk 0:00:09]} 28. g4 {[%clk 0:00:16]}  Rg8 {[%clk 0:00:09]} 29. Nh2 {[%clk 0:00:15]}  Rg7 {[%clk 0:00:09]} 30. Re4 {[%clk 0:00:13]}  Reg8 {[%clk 0:00:09]} 31. Rg2 {[%clk 0:00:14]}  Bg5 {[%clk 0:00:09]} 32. Qc1 {[%clk 0:00:14]}  Nf6 {[%clk 0:00:08]} 33. Re1 {[%clk 0:00:08]}  Bxd2 {[%clk 0:00:07]} 34. Qxd2 {[%clk 0:00:09]}  e4 {[%clk 0:00:07]} 35. Be2 {[%clk 0:00:08]}  Bc8 {[%clk 0:00:06]} 36. Qe3 {[%clk 0:00:07]}  Qe5 {[%clk 0:00:06]} 37. Bd1 {[%clk 0:00:06]}  Bd7 {[%clk 0:00:06]} 38. Kh1 {[%clk 0:00:05]}  Qe7 {[%clk 0:00:05]} 39. Ree2 {[%clk 0:00:04]}  Qe5 {[%clk 0:00:05]} 40. Re1 {[%clk 0:00:04]}  Bc8 {[%clk 0:00:06]} 41. Nf3 {[%clk 0:00:04]}  Qe7 {[%clk 0:00:05]} 42. Nh4 {[%clk 0:00:05]}  Ne8 {[%clk 0:00:03]} 43. Ng6 {[%clk 0:00:05]}  Qg5 {[%clk 0:00:04]} 44. Qxg5 {[%clk 0:00:05]}  hxg5 {[%clk 0:00:04]} 45. Rh2# {[%clk 0:00:05]} 1-0